bitfinex/quotes_ETHUSD_20251108
["timestamp","ask_amount","ask_price","bid_price","bid_amount"]
[1762607396751,0.60033306,3409.2,3409.1,3.41232551]
[1762607397558,0.002,3409.3,3409.1,3.41232551]
[1762607398278,0.60233306,3409.3,3409.1,3.41232551]
[1762607398447,0.002,3409.3,3409.1,3.41232551]
[1762607398774,0.002,3409.3,3409.1,0.479]
[1762607398945,0.1448,3409.2,3409.1,3.41232551]
[1762607399842,0.1448,3409.2,3408.6,0.6125]
[1762607400184,0.1448,3409.2,3408.7,2.93362299]
[1762607400346,0.002,3409.3,3408.7,2.93362299]
[1762607400681,0.1448,3409.0,3408.9,2.9334976]
[1762607400882,0.1448,3409.0,3408.8,3.39967828]
[1762607401057,0.60033306,3409.2,3408.2,2.93404794]
[1762607401248,0.1448,3408.3,3408.2,2.93404794]
[1762607401449,0.1448,3408.3,3408.1,2.93418483]
[1762607401645,1.88186799,3408.8,3407.8,0.197]
[1762607401849,0.1448,3408.0,3407.8,3.13137903]
[1762607402086,0.1448,3408.0,3407.9,2.9343584]
[1762607402285,0.1448,3408.4,3408.2,2.93402535]
[1762607402448,0.1448,3408.4,3408.3,0.6587]
[1762607402651,0.1448,3408.4,3408.3,1.1506]
[1762607402845,0.1448,3408.4,3408.3,4.08461402]
[1762607403292,0.59819007,3409.2,3408.3,1.85247767]
[1762607403451,0.1448,3408.9,3408.5,0.4919]
[1762607403776,0.002,3409.3,3409.1,2.93332551]
[1762607403958,0.002,3409.3,3409.2,3.60783946]
[1762607404147,0.60019007,3409.3,3409.2,3.60783946]
[1762607404354,0.002,3409.3,3409.2,4.08383946]
[1762607404555,0.002,3409.3,3409.2,0.6746]
[1762607404768,0.60019007,3409.3,3408.2,0.476]
[1762607404949,0.1448,3409.1,3408.5,0.001]
[1762607405292,0.59819007,3409.0,3408.5,0.001]
[1762607405497,0.59819007,3408.9,3408.5,0.001]
[1762607405801,0.59819007,3409.2,3408.5,0.001]
[1762607406003,0.59819007,3409.1,3408.5,0.001]
[1762607406154,0.59819007,3409.0,3408.5,0.001]
[1762607406354,0.59819007,3408.9,3408.5,2.93483023]
[1762607406587,0.59819007,3409.2,3408.5,0.001]
[1762607406883,0.95171913,3409.1,3408.6,2.93372726]
[1762607407085,0.59819007,3409.0,3408.5,2.93480809]
[1762607407293,0.59819007,3408.9,3408.5,0.001]
[1762607407493,0.59819007,3409.2,3408.5,0.001]
[1762607407705,0.59819007,3409.1,3408.5,0.001]
[1762607407998,0.59819007,3409.0,3408.5,0.001]
[1762607408204,0.59819007,3408.9,3408.5,0.001]
[1762607408368,0.59819007,3409.0,3408.5,0.001]
[1762607408571,0.59819007,3408.9,3408.5,0.001]
[1762607408755,0.81933372,3408.8,3408.5,0.001]
[1762607408955,0.620013,3408.7,3408.5,0.001]
[1762607409285,0.59819007,3408.6,3408.5,0.001]
[1762607409788,0.59819007,3408.6,3408.5,3.90274186]
[1762607409988,0.59819007,3409.2,3408.6,2.93370786]
[1762607410188,0.59819007,3409.1,3408.6,2.93375579]
[1762607410497,0.59819007,3409.0,3408.6,3.40975579]
[1762607410694,0.59819007,3409.2,3408.7,0.476]
[1762607410995,0.1448,3408.9,3408.6,0.6344636]
[1762607411164,0.1448,3408.9,3408.5,0.001]
[1762607411486,0.1448,3408.9,3408.7,2.93366413]
[1762607411661,0.002,3409.3,3408.5,0.001]
[1762607411662,0.59819007,3409.1,3408.5,0.001]
[1762607411866,0.1448,3408.7,3408.6,2.93375579]
[1762607412280,0.1448,3408.7,3408.6,3.90165579]
[1762607412478,0.1448,3408.7,3408.6,0.9679]
[1762607412992,0.1448,3408.7,3408.6,3.90165579]
[1762607413956,0.1448,3408.7,3408.6,4.58531258]
[1762607414185,0.59819007,3409.2,3408.6,1.65155679]
[1762607414360,0.59819007,3409.1,3408.6,3.90164381]
[1762607414565,0.59819007,3409.2,3408.6,0.4919]
[1762607414766,0.59819007,3409.1,3408.6,3.42557534]
[1762607415093,0.59819007,3409.0,3408.7,2.93364854]
[1762607415261,0.59819007,3409.2,3408.8,3.40956879]
[1762607415461,0.59819007,3409.1,3408.8,3.40956879]
[1762607415661,0.59819007,3409.0,3408.9,2.9334976]
[1762607415863,0.59819007,3409.2,3408.8,3.40955023]
[1762607416092,0.59819007,3409.1,3408.8,3.40955023]
[1762607416276,0.59819007,3409.0,3408.8,3.40955023]
[1762607416470,0.59819007,3409.2,3408.8,3.40955023]
[1762607416675,0.59819007,3409.1,3408.8,3.40955023]
[1762607416871,0.59819007,3409.0,3408.8,0.476]
[1762607417071,0.59819007,3409.2,3408.8,0.476]
[1762607417277,0.59819007,3409.1,3408.8,0.476]
[1762607417499,0.59819007,3409.0,3408.5,0.001]
[1762607417688,0.59819007,3408.9,3408.5,0.001]
[1762607417861,0.59819007,3409.2,3408.6,2.93367623]
[1762607418064,0.59819007,3409.1,3408.5,2.93480852]
[1762607418379,0.59819007,3409.0,3408.6,2.93371259]
[1762607418586,0.59819007,3409.2,3408.7,0.02933669]
[1762607418782,0.5967291,3409.2,3409.1,2.93332551]
[1762607418985,0.5987291,3409.3,3409.1,4.08385941]
[1762607419204,0.5987291,3409.3,3409.2,0.4919]
[1762607419996,0.5987291,3409.3,3408.5,0.001]
[1762607420186,0.5967291,3409.2,3408.6,2.93370648]
[1762607420522,0.5967291,3409.1,3408.6,2.93370648]
[1762607420723,0.5967291,3409.0,3408.7,2.93365743]
[1762607420926,0.5967291,3409.2,3408.7,2.93365743]
[1762607421215,0.5967291,3409.1,3408.8,2.93356794]
[1762607421417,0.5967291,3409.2,3408.8,2.93356794]
[1762607421614,0.5967291,3409.1,3408.8,2.93356794]
[1762607421815,0.5967291,3409.2,3408.5,0.477]
[1762607422020,0.5967291,3409.1,3408.5,2.93483597]
[1762607422211,0.5967291,3409.0,3408.5,0.001]
[1762607422527,0.5967291,3408.9,3408.5,0.001]
[1762607422703,0.5967291,3409.1,3408.5,0.001]
[1762607422926,0.5967291,3409.0,3408.5,0.001]
[1762607423085,0.5967291,3408.9,3408.5,0.001]
[1762607423286,0.5967291,3409.1,3408.5,0.001]
[1762607423488,0.5967291,3409.0,3408.5,0.001]
[1762607423800,0.5967291,3408.9,3408.5,2.93482729]
[1762607423987,0.5967291,3409.2,3408.5,2.93482729]
[1762607424326,0.5967291,3409.1,3408.5,0.001]
[1762607424500,0.5967291,3409.0,3408.5,2.93478132]
[1762607424687,0.5967291,3408.9,3408.5,2.93478132]
[1762607424883,0.5967291,3409.2,3408.5,2.93478132]
[1762607425085,0.5967291,3409.1,3408.5,2.93478132]
[1762607425324,0.5967291,3409.0,3408.5,0.001]
[1762607425524,0.002,3409.3,3408.5,0.001]
[1762607425525,0.61855203,3408.9,3408.5,0.001]
[1762607425819,0.002,3409.3,3408.5,0.001]
[1762607425820,0.5967291,3408.8,3408.5,0.001]
[1762607426024,0.5967291,3408.7,3408.5,0.001]
[1762607426190,0.5967291,3408.6,3408.5,0.001]
[1762607426388,0.5967291,3408.8,3408.5,0.001]
[1762607426586,0.59690394,3408.7,3408.5,0.001]
[1762607426821,0.59690394,3408.6,3408.5,0.001]
[1762607426984,0.59690394,3408.7,3408.5,0.001]
[1762607427191,0.59690394,3408.6,3408.5,0.001]
[1762607427412,2.93477141,3409.8,3408.5,0.001]
[1762607427413,0.59690394,3408.9,3408.5,0.001]
[1762607427613,2.93366983,3408.7,3408.5,0.001]
[1762607427925,0.59690394,3408.6,3408.5,0.001]
[1762607431708,2.93333505,3409.1,3408.5,0.001]
[1762607431709,2.93349961,3408.9,3408.5,0.001]
[1762607431902,1.259712,3408.7,3408.5,0.001]
[1762607432135,2.3356366,3408.6,3408.5,0.001]
[1762607432442,1.0759246,3408.6,3408.5,0.001]
[1762607433448,5.26939239,3408.6,3408.5,0.001]
[1762607436414,9.93019371,3408.6,3408.5,0.001]
[1762607443961,10.33569771,3408.6,3408.5,0.001]
[1762607448425,10.79602398,3408.6,3408.5,0.001]
[1762607448621,10.39051998,3408.6,3408.5,0.001]
[1762607449221,10.79602398,3408.6,3408.5,0.001]
[1762607449822,11.0922745,3408.6,3408.5,0.001]
[1762607450126,10.79602398,3408.6,3408.5,0.001]
[1762607451347,11.0922745,3408.6,3408.5,0.001]
[1762607452165,2.93410011,3408.2,3408.1,0.001]
[1762607452353,9.2233403,3408.2,3408.1,0.001]
[1762607452655,9.20151737,3408.2,3408.1,0.001]
[1762607453761,14.72818908,3408.2,3408.1,0.001]
[1762607454065,10.06738776,3408.2,3408.1,0.001]
[1762607454252,10.83376921,3408.2,3408.1,0.001]
[1762607458659,10.88864516,3408.2,3408.1,0.001]
[1762607459056,9.96789882,3408.2,3408.1,0.4912]
[1762607459260,9.96789882,3408.2,3408.1,0.001]
[1762607460009,9.96989882,3408.2,3408.1,0.001]
[1762607460670,6.51941726,3408.2,3408.1,1.1668]
[1762607461977,0.59890394,3408.2,3408.1,4.1009862]
[1762607462305,0.002,3408.2,3408.1,4.1009862]
[1762607462861,0.1468,3408.2,3408.1,4.1009862]
[1762607463190,0.1468,3408.2,3408.1,4.80754868]
[1762607463396,0.002,3408.2,3408.1,4.80754868]
[1762607463905,0.002,3408.6,3408.5,2.93384186]
[1762607464193,0.002,3408.6,3408.5,3.86894186]
[1762607464695,0.002,3408.6,3408.5,3.89828027]
[1762607464886,0.002,3408.6,3408.5,4.87491192]
[1762607465298,0.60038656,3409.3,3409.2,2.93323946]
[1762607465481,0.002,3409.3,3409.2,3.41683946]
[1762607465818,0.002,3409.3,3409.2,3.86833946]
[1762607466165,0.002,3409.3,3409.2,3.89767185]
[1762607466466,0.002,3409.3,3409.2,4.57053025]
[1762607467465,0.002,3409.3,3409.2,4.59986264]
[1762607467681,0.002,3409.3,3409.2,4.57053025]
[1762607468000,0.002,3409.4,3409.2,4.59986264]
[1762607468299,0.002,3409.4,3409.3,3.86825343]
[1762607468499,0.002,3409.4,3409.3,5.42645707]
[1762607468687,0.002,3409.7,3409.6,2.93289535]
[1762607468889,0.002,3409.7,3409.6,3.41649535]
[1762607469080,0.002,3409.7,3409.6,0.9351]
[1762607469280,0.002,3409.7,3409.6,3.86799535]
[1762607469500,0.002,3409.7,3409.6,4.54809395]
[1762607470205,0.002,3409.7,3409.6,4.5774229]
[1762607471181,0.002,3409.7,3409.6,4.54809395]
[1762607472212,0.002,3409.7,3409.6,4.95359795]
[1762607472881,0.005,3409.9,3409.8,2.93272332]
[1762607473061,0.005,3409.9,3409.8,4.38067894]
[1762607473269,0.005,3409.9,3409.8,9.89848426]
[1762607473497,0.005,3409.9,3409.8,10.04488426]
[1762607473699,0.002,3410.0,3409.9,3.33814132]
[1762607474025,0.002,3410.0,3409.9,4.27324132]
[1762607474224,0.002,3410.0,3409.9,5.46620414]
[1762607476407,0.005,3410.9,3410.8,2.93186349]
[1762607476603,0.005,3410.9,3410.8,3.60636349]
[1762607476794,0.005,3410.9,3410.8,4.05786349]
[1762607479029,0.005,3410.9,3410.8,8.71866481]
[1762607479174,0.005,3410.9,3410.8,10.28923085]
[1762607480718,0.005,3410.9,3410.8,5.62842953]
[1762607480925,0.005,3410.9,3410.8,10.28923085]
[1762607481998,0.002,3411.7,3411.6,2.93117598]
[1762607482199,0.002,3411.7,3411.6,8.4810813]
[1762607482525,0.002,3411.7,3411.6,10.09290615]
[1762607482897,0.005,3411.9,3411.6,10.09290615]
[1762607482898,0.005,3411.9,3411.8,3.33650816]
[1762607483171,0.005,3411.9,3411.8,3.82010816]
[1762607483338,0.005,3411.9,3411.8,4.27160816]
[1762607483626,0.005,3411.9,3411.8,3.86610416]
[1762607483789,0.005,3411.9,3411.8,4.69269621]
[1762607484215,0.005,3411.9,3411.8,0.9351]
[1762607484617,0.005,3411.9,3411.8,3.86610416]
[1762607485624,0.005,3411.9,3411.8,0.9351]
[1762607485931,0.005,3411.9,3411.5,0.1909]
[1762607486126,1.259712,3411.5,3410.7,0.11745067]
[1762607486337,2.93596292,3411.9,3410.4,3.38370654]
[1762607486338,0.88516677,3411.4,3410.4,3.38370654]
[1762607486633,0.1448,3410.7,3410.4,0.4515]
[1762607486951,0.1448,3410.7,3410.4,3.38367995]
[1762607487226,0.1448,3410.7,3410.3,0.1909]
[1762607487443,1.259712,3411.7,3410.6,0.4836]
[1762607487592,2.93135322,3411.4,3410.6,0.4836]
[1762607487795,0.41910652,3411.3,3410.6,0.4836]
[1762607488205,1.259712,3411.8,3410.7,0.4515]
[1762607488562,0.002,3412.1,3410.6,0.4836]
[1762607488563,0.005,3411.9,3410.6,0.4836]
[1762607488720,1.259712,3411.3,3410.6,0.4836]
[1762607488923,2.9315104,3411.3,3410.3,0.1909]
[1762607489117,1.259712,3411.8,3410.3,0.6424]
[1762607489436,1.259712,3411.6,3410.7,2.9318944]
[1762607489634,0.77195316,3411.6,3410.5,2.93212138]
[1762607489843,0.77195316,3411.6,3410.7,2.93189888]
[1762607490003,3.70313573,3411.6,3410.6,3.38353042]
[1762607490624,3.70313573,3411.6,3410.6,3.38351532]
[1762607490851,2.93143376,3411.3,3410.3,0.1909]
[1762607491051,2.93175167,3411.0,3410.1,0.1909]
[1762607491373,2.93175167,3411.0,3409.4,2.93302165]
[1762607491374,0.02182293,3410.9,3408.3,2.93398043]
[1762607491521,1.259712,3410.4,3409.4,3.40056136]
[1762607491848,2.93212163,3410.5,3409.4,0.4675]
[1762607492047,1.259712,3410.3,3409.3,0.193]
[1762607492281,2.9321469,3410.5,3409.4,2.93299052]
[1762607492439,1.259712,3410.4,3409.5,2.932958]
[1762607492769,2.9321469,3410.5,3409.4,2.9330674]
[1762607492770,1.259712,3410.5,3409.4,2.9330674]
[1762607492950,1.259712,3410.5,3409.5,2.93294598]
[1762607493268,1.259712,3410.5,3409.1,0.005]
[1762607493269,2.93278119,3409.8,3409.1,0.005]
[1762607493564,0.58653652,3409.8,3409.1,0.005]
[1762607493762,4.78634988,3409.9,3409.1,0.005]
[1762607494062,1.259712,3409.7,3409.1,0.005]
[1762607494266,2.93307429,3409.4,3409.1,0.005]
[1762607494436,2.93323946,3409.2,3409.1,0.005]
[1762607494642,3.54905918,3409.2,3409.1,0.005]
[1762607494963,5.39379657,3409.2,3409.1,0.005]
[1762607495321,5.79930057,3409.2,3409.1,0.005]
[1762607495866,2.313987,3409.2,3409.1,0.005]
[1762607496253,1.71999021,3409.2,3409.1,0.005]
[1762607496450,1.71999021,3409.2,3409.1,0.006]
[1762607496663,1.71999021,3409.2,3409.1,1.1593]
[1762607496973,1.259712,3409.2,3409.1,0.006]
[1762607497172,0.46018037,3409.5,3409.1,3.43210772]
[1762607497332,8.80579719,3410.9,3409.2,0.34321077]
[1762607497533,0.4601359,3410.0,3409.4,0.4928]
[1762607497787,0.1448,3409.5,3409.1,0.006]
[1762607497931,1.259712,3410.1,3409.2,2.93316871]
[1762607498131,0.5935158,3410.0,3409.3,2.93314577]
[1762607498353,0.5935158,3410.1,3409.2,0.4675]
[1762607498663,0.1448,3409.4,3409.2,0.4675]
[1762607499079,0.1448,3409.4,3409.3,3.42595343]
[1762607499247,0.1448,3409.4,3409.3,4.10922417]
[1762607499448,0.1448,3409.4,3409.3,4.6060557]
[1762607499774,5.8739798,3411.1,3409.3,4.6060557]
[1762607499775,0.1448,3409.7,3409.6,2.9328814]
[1762607500187,0.1448,3409.7,3409.6,3.8931814]
[1762607501789,0.1448,3409.7,3409.6,0.9603]
[1762607502017,0.1448,3409.7,3409.6,3.89319535]
[1762607502291,0.1448,3409.7,3409.6,4.64414729]
[1762607503092,0.1448,3409.7,3409.6,1.71125194]
[1762607503264,0.1448,3409.7,3409.6,0.4928]
[1762607504078,0.1448,3409.7,3409.6,0.9532]
[1762607504280,0.1448,3409.7,3409.6,3.88609535]
[1762607504682,2.93314887,3411.7,3409.6,0.98252895]
[1762607504858,2.93314887,3411.7,3409.5,2.93295458]
[1762607504859,2.93177163,3411.0,3410.3,0.4676]
[1762607505196,1.259712,3410.8,3410.3,0.4676]
[1762607505396,0.59317223,3410.7,3409.7,0.4604]
[1762607505567,1.259712,3411.2,3409.7,0.4604]
[1762607505785,1.259712,3410.7,3409.7,0.4604]
[1762607505986,1.259712,3410.7,3409.9,2.93263724]
[1762607506202,0.41915922,3410.6,3409.9,2.93263724]
[1762607506526,0.41915922,3410.6,3409.7,3.39315812]
[1762607506679,2.27208012,3410.6,3409.7,3.3931909]
[1762607506988,1.67887122,3410.6,3409.7,3.3931909]
[1762607507199,1.67887122,3410.6,3409.8,2.93272318]
[1762607507503,0.41915922,3410.6,3409.9,2.93263447]
[1762607508216,0.59321176,3410.7,3410.0,3.39289029]
[1762607508416,1.85292376,3410.8,3410.0,3.39289029]
[1762607508736,0.46005237,3410.9,3410.1,0.6566]
[1762607509209,0.46005237,3410.9,3410.1,3.58904381]
[1762607509373,1.05335076,3410.9,3410.1,0.6566]
[1762607509579,1.259712,3410.8,3410.1,0.6566]
[1762607509775,0.5933984,3410.7,3410.1,0.1962]
[1762607509992,0.5933984,3410.8,3410.1,0.1962]
[1762607511110,0.5933984,3410.8,3409.8,0.4604]
[1762607511290,4.78503618,3410.8,3409.9,2.93262716]
[1762607511494,0.5933984,3410.7,3409.9,2.93262716]
[1762607511709,0.5933984,3410.7,3410.0,2.9325044]
[1762607512018,2.33573285,3410.8,3410.0,2.9325044]
[1762607512217,2.33573285,3410.8,3410.1,0.1962]
[1762607512518,0.59414128,3410.7,3410.1,0.1962]
[1762607512810,0.59414128,3410.7,3409.7,0.4604]
[1762607513011,0.59414128,3410.7,3409.9,2.93256297]
[1762607513204,1.51949732,3410.7,3410.0,2.9325442]
[1762607513440,0.59476296,3410.6,3410.1,2.9324622]
[1762607513628,0.59476296,3410.6,3410.0,2.93251299]
[1762607514026,0.59476296,3410.6,3410.1,0.1962]
[1762607514453,0.59476296,3410.6,3410.1,0.6566]
[1762607515135,0.59476296,3410.6,3410.1,0.1962]
[1762607515326,0.59476296,3410.6,3410.3,2.93228669]
[1762607515526,0.59476296,3410.7,3410.5,0.4676]
[1762607515727,0.59476296,3410.8,3410.5,0.4676]
[1762607515937,0.87222082,3410.8,3410.1,0.1962]
[1762607516136,0.1448,3410.2,3409.7,0.4604]
[1762607516539,0.1448,3409.8,3409.7,3.39317878]
[1762607517071,0.1448,3409.8,3409.7,3.86077878]
[1762607518253,0.59905483,3410.9,3410.2,2.93235682]
[1762607518426,1.21887668,3410.8,3410.2,3.39995682]
[1762607518751,0.59905483,3410.7,3410.3,0.1962]
[1762607518918,0.59905483,3410.9,3410.2,0.4676]
[1762607519120,0.1448,3410.2,3409.5,0.4604]
[1762607519430,0.1448,3409.9,3409.8,2.93272332]
[1762607520053,0.1448,3409.9,3409.8,3.86072332]
[1762607520252,1.259712,3410.4,3409.4,0.4604]
[1762607520548,1.259712,3410.4,3409.5,2.93292502]
[1762607520549,1.85876683,3410.3,3409.5,2.93292502]
[1762607520749,0.59905483,3410.2,3409.5,2.93292502]
[1762607520972,4.79123518,3410.1,3409.4,0.4604]
[1762607521273,1.259712,3409.9,3409.2,0.455]
[1762607521478,2.93323946,3409.2,3409.1,0.006]
[1762607521636,4.79200629,3409.2,3409.1,0.006]
[1762607521842,1.85876683,3409.2,3409.1,0.006]
[1762607522064,2.63126279,3409.2,3409.1,0.006]
[1762607522251,4.79200629,3409.2,3409.1,0.006]
[1762607526788,1.85876683,3409.2,3409.1,0.006]
[1762607527780,0.59905483,3409.2,3409.1,0.6821]
[1762607528052,1.259712,3409.7,3409.1,0.6821]
[1762607528277,0.59878396,3409.6,3409.1,0.6821]
[1762607528492,0.59878396,3409.7,3409.1,0.6821]
[1762607528968,1.259712,3409.8,3409.2,0.1858]
[1762607529167,0.59878396,3409.7,3409.2,0.1858]
[1762607529398,0.59878396,3409.9,3409.2,0.1858]
[1762607529570,0.47910794,3409.8,3409.2,0.1858]
[1762607529974,0.59878396,3409.9,3409.2,0.6408]
[1762607530272,1.259712,3409.7,3409.2,0.1858]
[1762607530472,0.1448,3409.2,3409.1,0.006]
[1762607530713,4.33775146,3409.2,3409.1,0.006]
[1762607530883,4.93635403,3409.2,3409.1,0.006]
[1762607531075,5.72548595,3409.2,3409.1,0.006]
[1762607531505,4.46577395,3409.2,3409.1,0.006]
[1762607531712,6.18571271,3409.2,3409.1,0.006]
[1762607536231,6.59121671,3409.2,3409.1,0.006]
[1762607538911,6.13098995,3409.2,3409.1,0.006]
[1762607542196,6.5912754,3409.2,3409.1,0.006]
[1762607544127,3.25253194,3409.2,3409.1,0.4963]
[1762607544324,1.05888802,3409.2,3409.1,1.1371]
[1762607544524,5.25183948,3409.2,3409.1,0.6821]
[1762607544724,0.59860257,3409.2,3409.1,0.006]
[1762607545133,3.95916896,3409.2,3409.1,0.006]
[1762607545302,6.59965887,3409.2,3409.1,0.006]
[1762607546355,7.05993498,3409.2,3409.1,0.006]
[1762607547043,6.65443098,3409.2,3409.1,0.006]
[1762607547410,3.72119152,3409.2,3409.1,0.006]
[1762607547632,5.25183014,3409.2,3409.1,0.006]
[1762607548007,5.71207017,3409.2,3409.1,0.006]
[1762607548244,5.25183014,3409.2,3409.1,0.006]
[1762607548442,2.31859068,3409.2,3409.1,0.4963]
[1762607548752,5.25183014,3409.2,3409.1,0.4963]
[1762607548912,6.07032043,3409.2,3409.1,0.006]
[1762607551365,3.13708097,3409.2,3409.1,0.006]
[1762607551659,2.67680486,3409.2,3409.1,0.4687]
[1762607551829,6.07029479,3409.2,3409.1,0.4687]
[1762607552155,5.47169222,3409.2,3409.1,0.006]
[1762607552364,6.07210261,3409.2,3409.1,0.006]
[1762607553167,6.07210261,3409.2,3409.1,0.4687]
[1762607555036,6.07210261,3409.2,3409.1,0.006]
[1762607555365,6.07210261,3409.2,3409.1,0.4687]
[1762607555669,6.07210261,3409.2,3409.1,0.9197]
[1762607556771,6.07210261,3409.2,3409.1,1.101]
[1762607557174,6.07210261,3409.2,3409.1,0.65]
[1762607558090,6.07210261,3409.2,3409.1,0.006]
[1762607558453,10.73002987,3409.2,3409.1,0.006]
[1762607559713,0.60041039,3409.2,3409.1,4.03432551]
[1762607559993,5.11809745,3410.2,3409.1,1.101]
[1762607560168,0.46017019,3410.2,3410.1,0.644]
[1762607560483,1.259712,3410.3,3410.1,1.095]
[1762607560786,2.93215198,3410.5,3410.1,0.644]
[1762607560991,2.93270114,3409.9,3409.1,0.1873]
[1762607561162,4.32555146,3409.2,3409.1,0.006]
[1762607561365,4.91882123,3409.2,3409.1,0.006]
[1762607561855,5.18402123,3409.2,3409.1,0.006]
[1762607562555,4.91882123,3409.2,3409.1,0.006]
[1762607562759,4.19295146,3409.2,3409.1,0.006]
[1762607562961,4.19295146,3409.2,3409.1,1.139]
[1762607562962,1.71994862,3409.2,3409.1,1.139]
[1762607569287,1.259712,3409.2,3409.1,1.139]
[1762607572103,1.84288328,3409.2,3409.1,1.139]
[1762607573441,1.84288328,3409.2,3409.1,1.5462581]
[1762607575381,1.84288328,3409.2,3409.1,1.139]
[1762607579016,0.002,3409.2,3409.1,4.07232551]
[1762607580708,0.002,3409.2,3409.1,1.139]
[1762607581024,0.002,3409.2,3409.1,4.07232551]
[1762607581174,0.1468,3409.2,3409.1,4.07232551]
[1762607581513,0.1468,3409.2,3409.1,1.83957405]
[1762607581691,0.1468,3409.2,3409.1,1.139]
[1762607583915,0.1468,3409.2,3409.1,4.07232551]
[1762607584284,0.002,3409.2,3409.1,4.21872551]
[1762607586002,0.002,3409.2,3409.1,4.62422951]
[1762607586201,0.002,3409.6,3409.5,2.93298137]
[1762607586413,0.002,3409.6,3409.5,3.39208137]
[1762607586583,0.002,3409.6,3409.5,4.00878137]
[1762607587923,0.002,3409.6,3409.5,3.86238137]
[1762607591003,0.002,3409.6,3409.5,3.89171118]
[1762607591242,0.002,3409.6,3409.5,4.58882965]
[1762607591424,0.002,3409.6,3409.5,4.70589984]
[1762607593934,0.002,3409.6,3409.5,4.55949984]
[1762607596737,0.002,3409.6,3409.5,4.08919984]
[1762607596940,0.002,3409.6,3409.5,4.55949984]
[1762607597319,0.002,3409.6,3409.5,0.4591]
[1762607597530,0.1448,3409.5,3409.4,2.93300698]
[1762607597923,0.1448,3409.5,3409.4,3.39210698]
[1762607598309,0.4098,3409.5,3409.2,2.93320601]
[1762607598524,0.1448,3409.3,3409.2,2.93320601]
[1762607598954,0.1448,3409.3,3409.2,3.39230601]
[1762607599558,0.1448,3409.3,3409.2,4.56112729]
[1762607599856,0.1448,3409.3,3409.2,4.09082729]
[1762607600030,0.1448,3409.3,3409.2,4.56112729]
[1762607602861,0.002,3409.6,3409.5,2.93298137]
[1762607603024,0.002,3409.6,3409.5,3.39208137]
[1762607603359,0.002,3409.6,3409.5,3.86238137]
[1762607603564,0.002,3409.6,3409.5,4.61177871]
[1762607604473,0.002,3409.6,3409.5,4.64110852]
[1762607604676,0.002,3409.6,3409.5,4.61177871]
[1762607604988,0.002,3409.6,3409.5,5.04661252]
[1762607605485,0.002,3409.6,3409.5,5.01728271]
[1762607607352,0.002,3409.6,3409.5,5.04661252]
[1762607607554,0.002,3409.6,3409.5,5.16368271]
[1762607608270,0.002,3409.6,3409.5,5.19301252]
[1762607608619,0.002,3409.9,3409.5,6.42339471]
[1762607608889,0.002,3410.3,3409.5,6.42339471]
[1762607608890,0.002,3410.3,3410.2,3.33788333]
[1762607609057,0.002,3410.3,3410.2,5.85359533]
[1762607609454,0.1448,3411.5,3411.4,2.93134783]
[1762607609692,0.1448,3411.5,3411.4,3.39044783]
[1762607609903,0.005,3411.9,3411.6,2.93117598]
[1762607610188,0.005,3411.9,3411.6,4.08748836]
[1762607610375,0.005,3411.9,3411.6,4.55778836]
[1762607611182,0.005,3411.9,3411.6,5.10969236]
[1762607617990,0.005,3411.9,3411.6,6.36940436]
[1762607619224,0.005,3411.9,3411.6,4.08748836]
[1762607619432,0.005,3411.9,3411.6,3.87187598]
[1762607619854,0.269,3411.7,3411.6,2.93117598]
[1762607620044,0.269,3411.7,3411.1,3.1141705]
[1762607620207,0.002,3411.7,3411.6,2.93117598]
[1762607620944,0.269,3411.7,3411.6,2.93117598]
[1762607621253,0.002,3411.7,3411.6,2.93117598]
[1762607621423,0.269,3411.7,3411.6,2.93117598]
[1762607621809,0.269,3411.7,3411.5,2.93123224]
[1762607622028,0.269,3411.7,3411.5,2.9312606]
[1762607622232,0.0158,3411.6,3410.9,0.4816]
[1762607622432,0.0158,3411.6,3411.3,2.93135856]
[1762607622618,0.0158,3411.6,3411.4,2.93129924]
[1762607622828,0.0158,3411.6,3411.5,2.9312619]
[1762607623545,0.0158,3411.6,3411.4,2.93132801]
[1762607623733,0.0158,3411.6,3411.5,2.9312619]
[1762607624827,0.002,3411.7,3411.6,2.93117598]
[1762607625025,0.002,3411.7,3411.6,3.42507598]
[1762607626478,0.269,3411.7,3411.5,2.93123271]
[1762607626780,0.269,3411.7,3411.1,0.4853]
[1762607627082,0.269,3411.7,3411.6,2.93117598]
[1762607627636,0.269,3411.7,3410.8,3.79]
[1762607627875,0.269,3411.7,3411.6,2.93117598]
[1762607628569,0.002,3411.7,3411.6,2.93117598]
[1762607629261,0.269,3411.7,3411.6,2.93117598]
[1762607629776,0.1448,3411.6,3411.5,2.93123867]
[1762607630255,0.4118,3411.6,3411.5,2.93123867]
[1762607630771,0.1448,3411.6,3411.5,2.93123867]
[1762607631553,0.4118,3411.6,3411.5,2.93123867]
[1762607633477,0.1448,3411.6,3411.5,3.42513867]
[1762607633702,0.002,3411.7,3411.6,2.93117598]
[1762607633986,0.267,3411.6,3411.2,0.1464]
[1762607634191,0.0158,3411.4,3411.3,2.93141339]
[1762607634689,0.0158,3411.4,3411.2,2.9314645]
[1762607634860,0.0158,3411.4,3411.3,2.93143376]
[1762607637108,0.1448,3411.5,3411.4,2.93134783]
[1762607639268,0.0948,3411.5,3411.4,2.93134783]
[1762607639576,0.3618,3411.5,3411.4,2.93134783]
[1762607640888,0.3618,3411.5,3410.9,0.1464]
[1762607641205,0.0158,3411.3,3411.2,2.93151969]
[1762607641418,0.0948,3411.5,3411.4,2.93134783]
[1762607641582,0.267,3411.3,3410.9,0.1464]
[1762607641785,0.267,3411.0,3410.7,0.1464]
[1762607641983,0.0952,3411.0,3410.4,0.1464]
[1762607642186,0.0952,3411.0,3410.9,2.93177753]
[1762607642574,0.267,3411.5,3411.2,2.93151908]
[1762607642880,0.267,3411.5,3410.9,3.40477753]